[Event "GER-chT Youth Countries 2020"]
[Site "Berlin"]
[Date "2020.10.01"]
[Round "3"]
[White "Tiarks, Jann-Christian"]
[Black "Zimmer, Luca"]
[Result "0-1"]
[ECO "C00"]
[WhiteElo "2151"]
[BlackElo "1690"]
[Annotator "ChessBase"]
[PlyCount "104"]
[EventDate "2020.09.30"]
[EventType "team-tourn"]
[EventRounds "7"]
[EventCountry "GER"]
[SourceTitle "playchess.com"]
[Source "ChessBase"]
[SourceQuality "1"]
[TimeControl "30/5400+30:0"]

1. e4 {[%emt 0:00:00]} e6 {[%emt 0:00:00]} 2. d3 {[%emt 0:00:00]} d5 {[%emt 0:00:02]} 3. Nd2 {[%emt 0:00:00]} Nf6 {[%emt 0:00:28]} 4. Ngf3 {[%emt 0:00:00]} Bc5 {[%emt 0:07:13]} 5. e5 {[%emt 0:07:27]} Nfd7 {[%emt 0:03:54]} 6. Be2 {[%emt 0:04:50]} Bb6 {[%emt 0:02:09]} 7. c3 {[%emt 0:01:44]} c5 {[%emt 0:00:35]} 8. Nb3 {[%emt 0:00:35]} Nc6 {[%emt 0:01:12]} 9. d4 {[%emt 0:00:10]} f6 {[%emt 0:03:24]} 10. exf6 {[%emt 0:04:26]} Qxf6 {[%emt 0:07:58]} 11. Bg5 {[%emt 0:01:20]} Qf8 {[%emt 0:00:40]} 12. O-O {[%emt 0:01:11]} c4 {[%emt 0:04:17]} 13. Nbd2 {[%emt 0:00:37]} Nf6 {[%emt 0:00:24]} 14. b3 {[%emt 0:04:11]} cxb3 {[%emt 0:02:30]} 15. axb3 {[%emt 0:00:29]} Qf7 {[%emt 0:02:15]} 16. b4 {[%emt 0:05:32]} O-O {[%emt 0:01:13]} 17. b5 {[%emt 0:02:22]} Nd8 {[%emt 0:01:02]} 18. Ne5 {[%emt 0:00:42]} Qe8 {[%emt 0:03:34]} 19. Bd3 {[%emt 0:01:55]} Qh5 {[%emt 0:14:33]} 20. Ndf3 {[%emt 0:02:31]} Ng4 {[%emt 0:02:08]} 21. Nxg4 {[%emt 0:03:10]} Qxg4 {[%emt 0:00:30]} 22. Be7 {[%emt 0:00:13]} Rf7 {[%emt 0:02:07]} 23. Bxh7+ {[%emt 0:00:20]} Kh8 {[%emt 0:01:24]} 24. Ne5 {[%emt 0:00:30]} Qxd1 {[%emt 0:00:24]} 25. Nxf7+ {[%emt 0:01:29]} Nxf7 {[%emt 0:00:34]} 26. Rfxd1 {[%emt 0:00:13]} Kxh7 {[%emt 0:00:10]} 27. Rd3 {[%emt 0:02:01]} Bd7 {[%emt 0:04:16]} 28. Rf3 {[%emt 0:05:49]} Kg8 {[%emt 0:01:23]} 29. Rb1 {[%emt 0:02:30]} Bd8 {[%emt 0:04:16]} 30. Bc5 {[%emt 0:00:17]} b6 {[%emt 0:02:09]} 31. Ba3 {[%emt 1:30:19]} Bc7 {[%emt 1:31:32]} 32. Re3 {[%emt 0:02:29]} Bd6 {[%emt 0:02:18]} 33. Ra1 {[%emt 0:00:46]} Bxa3 {[%emt 0:02:04]} 34. Rxa3 {[%emt 0:00:16]} Nd6 {[%emt 0:00:10]} 35. Rb3 {[%emt 0:01:06]} Nxb5 {[%emt 0:02:55]} 36. f4 {[%emt 0:00:04]} Nd6 {[%emt 0:00:34]} 37. g4 {[%emt 0:00:30]} Nc4 {[%emt 0:02:42]} 38. Re2 {[%emt 0:00:17]} a5 {[%emt 0:01:38]} 39. f5 {[%emt 0:00:28]} exf5 {[%emt 0:09:10]} 40. Re7 {[%emt 0:00:15]} Ba4 {[%emt 0:00:05]} 41. Rb1 {[%emt 0:00:08]} fxg4 {[%emt 0:00:41]} 42. Rbe1 {[%emt 0:00:35]} Kf8 {[%emt 0:01:34]} 43. Rb7 {[%emt 0:00:24]} Re8 {[%emt 0:02:07]} 44. Rf1+ {[%emt 0:00:18]} Kg8 {[%emt 0:00:23]} 45. Rff7 {[%emt 0:00:15]} Bc2 {[%emt 0:05:43]} 46. Rxg7+ {[%emt 0:00:34]} Kh8 {[%emt 0:00:10]} 47. Rg5 {[%emt 0:00:29]} Be4 {[%emt 0:02:22]} 48. Kf2 {[%emt 0:10:22]} Rf8+ {[%emt 0:00:00]} 49. Ke1 {[%emt 0:00:00]} Rf6 {[%emt 0:00:00]} 50. Rxg4 {[%emt 0:00:00]} a4 {[%emt 0:00:00]} 51. Rbg7 {[%emt 0:00:00]} a3 {[%emt 0:00:00]} 52. Ra7 {[%emt 0:00:00]} Na5 {[%emt 0:00:00]} 0-1

[Event "GER-chT Youth Countries 2020"]
[Site "Berlin"]
[Date "2020.10.01"]
[Round "3"]
[White "Sreyas Payyappat"]
[Black "Hecht, Jonas Christian"]
[Result "1/2-1/2"]
[ECO "B33"]
[WhiteElo "2144"]
[BlackElo "1764"]
[Annotator "ChessBase"]
[PlyCount "103"]
[EventDate "2020.09.30"]
[EventType "team-tourn"]
[EventRounds "7"]
[EventCountry "GER"]
[SourceTitle "playchess.com"]
[Source "ChessBase"]
[SourceQuality "1"]
[TimeControl "30/5400+30:0"]

1. e4 {[%emt 0:00:00]} c5 {[%emt 0:00:00]} 2. Nf3 {[%emt 0:00:00]} Nc6 {[%emt 0:00:00]} 3. d4 {[%emt 0:00:06]} cxd4 {[%emt 0:00:00]} 4. Nxd4 {[%emt 0:00:10]} Nf6 {[%emt 0:00:00]} 5. Nc3 {[%emt 0:00:43]} e5 {[%emt 0:00:00]} 6. Ndb5 {[%emt 0:00:05]} d6 {[%emt 0:00:02]} 7. Bg5 {[%emt 0:00:25]} a6 {[%emt 0:00:14]} 8. Na3 {[%emt 0:00:10]} Be6 {[%emt 0:00:07]} 9. Nc4 {[%emt 0:02:07]} Rb8 {[%emt 0:00:50]} 10. Ne3 {[%emt 0:01:07]} Be7 {[%emt 0:02:08]} 11. Bxf6 {[%emt 0:02:19]} Bxf6 {[%emt 0:00:10]} 12. Bc4 {[%emt 0:02:01]} O-O {[%emt 0:02:40]} 13. O-O {[%emt 0:03:19]} Bg5 {[%emt 0:04:18]} 14. Ned5 {[%emt 0:04:23]} Nd4 {[%emt 0:02:22]} 15. f4 {[%emt 0:04:53]} Bh6 {[%emt 0:03:04]} 16. f5 {[%emt 0:02:36]} Bxd5 {[%emt 0:00:44]} 17. Nxd5 {[%emt 0:00:34]} Bg5 {[%emt 0:09:27]} 18. f6 {[%emt 0:01:51]} Bxf6 {[%emt 0:00:49]} 19. c3 {[%emt 0:19:30]} Ne6 {[%emt 0:01:42]} 20. Nxf6+ {[%emt 0:00:22]} gxf6 {[%emt 0:00:09]} 21. Qg4+ {[%emt 0:00:35]} Kh8 {[%emt 0:03:53]} 22. Qf5 {[%emt 0:01:19]} Nf4 {[%emt 0:01:35]} 23. Rad1 {[%emt 0:04:13]} Rg8 {[%emt 0:02:15]} 24. Rxf4 {[%emt 0:00:12]} exf4 {[%emt 0:00:11]} 25. Qxf4 {[%emt 0:00:22]} Qe7 {[%emt 0:00:43]} 26. Rxd6 {[%emt 0:04:43]} Rbd8 {[%emt 0:01:09]} 27. Qxf6+ {[%emt 0:01:25]} Qxf6 {[%emt 0:00:12]} 28. Rxf6 {[%emt 0:00:03]} Rd2 {[%emt 0:01:58]} 29. Rf2 {[%emt 0:02:03]} Rxf2 {[%emt 0:01:01]} 30. Kxf2 {[%emt 0:00:06]} Kg7 {[%emt 0:00:11]} 31. Kf3 {[%emt 1:30:54]} Kf6 {[%emt 1:30:13]} 32. Bd5 {[%emt 0:00:29]} b6 {[%emt 0:00:20]} 33. Kf4 {[%emt 0:00:08]} Ke7 {[%emt 0:00:45]} 34. g4 {[%emt 0:01:49]} Rg6 {[%emt 0:03:39]} 35. Bc4 {[%emt 0:08:26]} a5 {[%emt 0:01:07]} 36. h4 {[%emt 0:00:43]} Rd6 {[%emt 0:01:21]} 37. Bd5 {[%emt 0:05:52]} h6 {[%emt 0:03:00]} 38. g5 {[%emt 0:08:29]} hxg5+ {[%emt 0:00:37]} 39. hxg5 {[%emt 0:00:08]} Rd8 {[%emt 0:00:25]} 40. b4 {[%emt 0:06:52]} axb4 {[%emt 0:03:06]} 41. cxb4 {[%emt 0:00:07]} Rc8 {[%emt 0:00:48]} 42. Ke5 {[%emt 0:02:32]} Rc1 {[%emt 0:00:39]} 43. Kd4 {[%emt 0:02:57]} b5 {[%emt 0:03:19]} 44. e5 {[%emt 0:00:00]} Re1 {[%emt 0:00:00]} 45. Bc6 {[%emt 0:00:00]} Ra1 {[%emt 0:00:00]} 46. Bxb5 {[%emt 0:00:00]} Rxa2 {[%emt 0:00:00]} 47. Bd3 {[%emt 0:00:00]} Rg2 {[%emt 0:00:00]} 48. g6 {[%emt 0:03:14]} fxg6 {[%emt 0:00:00]} 49. b5 {[%emt 0:00:08]} g5 {[%emt 0:00:00]} 50. Kc3 {[%emt 0:01:05]} Rh2 {[%emt 0:00:00]} 51. b6 {[%emt 0:03:03]} Rh8 {[%emt 0:00:00]} 52. b7 {[%emt 0:01:12]} 1/2-1/2

[Event "GER-chT Youth Countries 2020"]
[Site "Berlin"]
[Date "2020.10.01"]
[Round "3"]
[White "Khachatryan, Taron"]
[Black "Gallasch, Jonas"]
[Result "1/2-1/2"]
[ECO "D70"]
[WhiteElo "2136"]
[BlackElo "2090"]
[Annotator "ChessBase"]
[PlyCount "80"]
[EventDate "2020.09.30"]
[EventType "team-tourn"]
[EventRounds "7"]
[EventCountry "GER"]
[SourceTitle "playchess.com"]
[Source "ChessBase"]
[SourceQuality "1"]
[TimeControl "30/5400+30:0"]

1. d4 {[%emt 0:00:00]} Nf6 {[%emt 0:00:00]} 2. c4 {[%emt 0:00:22]} g6 {[%emt 0:00:25]} 3. Nf3 {[%emt 0:00:07]} Bg7 {[%emt 0:00:08]} 4. g3 {[%emt 0:00:24]} O-O {[%emt 0:02:22]} 5. Bg2 {[%emt 0:00:08]} c5 {[%emt 0:01:17]} 6. Nc3 {[%emt 0:00:35]} cxd4 {[%emt 0:03:22]} 7. Nxd4 {[%emt 0:00:34]} Nc6 {[%emt 0:00:08]} 8. O-O {[%emt 0:00:11]} Nxd4 {[%emt 0:00:09]} 9. Qxd4 {[%emt 0:00:11]} d6 {[%emt 0:00:02]} 10. Qh4 {[%emt 0:03:38]} Rb8 {[%emt 0:08:17]} 11. Bg5 {[%emt 0:02:20]} Re8 {[%emt 0:12:56]} 12. Rfd1 {[%emt 0:05:28]} Qb6 {[%emt 0:18:09]} 13. Bf3 {[%emt 0:21:20]} Qxb2 {[%emt 0:12:42]} 14. Bd2 {[%emt 0:05:12]} Bf5 {[%emt 0:07:25]} 15. e4 {[%emt 0:06:15]} Bd7 {[%emt 0:01:44]} 16. c5 {[%emt 0:04:57]} Bc6 {[%emt 0:04:38]} 17. cxd6 {[%emt 0:00:54]} exd6 {[%emt 0:00:10]} 18. Rab1 {[%emt 0:00:49]} Qa3 {[%emt 0:00:33]} 19. Rb3 {[%emt 0:00:48]} Qc5 {[%emt 0:00:19]} 20. Be3 {[%emt 0:00:14]} Qc4 {[%emt 0:02:22]} 21. Rxd6 {[%emt 0:01:35]} Nxe4 {[%emt 0:05:12]} 22. Nxe4 {[%emt 0:00:10]} Bxe4 {[%emt 0:00:21]} 23. Bxe4 {[%emt 0:00:06]} Qxe4 {[%emt 0:00:39]} 24. Qxe4 {[%emt 0:00:10]} Rxe4 {[%emt 0:00:01]} 25. Bxa7 {[%emt 0:00:16]} Ra8 {[%emt 0:03:02]} 26. Rxb7 {[%emt 0:00:10]} Rae8 {[%emt 0:12:11]} 27. Rdd7 {[%emt 0:01:08]} Bf6 {[%emt 0:00:11]} 28. Bc5 {[%emt 0:01:11]} R4e5 {[%emt 0:02:18]} 29. Rxf7 {[%emt 0:02:17]} Rxc5 {[%emt 0:00:22]} 30. Rxf6 {[%emt 0:00:05]} Rf8 {[%emt 0:00:06]} 31. Rxf8+ {[%emt 1:31:04]} Kxf8 {[%emt 1:30:05]} 32. Ra7 {[%emt 0:00:38]} h5 {[%emt 0:00:27]} 33. h4 {[%emt 0:00:16]} Kg8 {[%emt 0:00:25]} 34. Kg2 {[%emt 0:00:14]} Rc3 {[%emt 0:00:06]} 35. Kf1 {[%emt 0:01:12]} Rc2 {[%emt 0:00:17]} 36. f3 {[%emt 0:03:58]} Rb2 {[%emt 0:00:30]} 37. f4 {[%emt 0:01:01]} Rc2 {[%emt 0:00:21]} 38. f5 {[%emt 0:00:53]} gxf5 {[%emt 0:00:49]} 39. Ra5 {[%emt 0:00:12]} f4 {[%emt 0:02:57]} 40. gxf4 {[%emt 0:00:13]} Rc4 {[%emt 0:00:28]} 1/2-1/2

[Event "GER-chT Youth Countries 2020"]
[Site "Berlin"]
[Date "2020.10.01"]
[Round "3"]
[White "Runte, Moritz"]
[Black "Popvasilev, Kaloyan"]
[Result "1-0"]
[ECO "B51"]
[WhiteElo "2114"]
[BlackElo "2145"]
[Annotator "ChessBase"]
[PlyCount "81"]
[EventDate "2020.09.30"]
[EventType "team-tourn"]
[EventRounds "7"]
[EventCountry "GER"]
[SourceTitle "playchess.com"]
[Source "ChessBase"]
[SourceQuality "1"]
[TimeControl "30/5400+30:0"]

1. e4 {[%emt 0:00:00]} c5 {[%emt 0:00:00]} 2. Nf3 {[%emt 0:00:00]} d6 {[%emt 0:00:00]} 3. Bb5+ {[%emt 0:00:05]} Nc6 {[%emt 0:01:16]} 4. O-O {[%emt 0:03:34]} Bd7 {[%emt 0:02:06]} 5. c3 {[%emt 0:03:12]} Nf6 {[%emt 0:01:32]} 6. Re1 {[%emt 0:02:32]} a6 {[%emt 0:05:26]} 7. Ba4 {[%emt 0:03:27]} b5 {[%emt 0:02:35]} 8. Bc2 {[%emt 0:00:41]} e5 {[%emt 0:01:42]} 9. h3 {[%emt 0:03:02]} h6 {[%emt 0:11:02]} 10. d3 {[%emt 0:19:47]} g5 {[%emt 0:09:44]} 11. Nh2 {[%emt 0:06:31]} Rg8 {[%emt 0:04:27]} 12. Ng4 {[%emt 0:09:34]} h5 {[%emt 0:12:52]} 13. Nxf6+ {[%emt 0:08:07]} Qxf6 {[%emt 0:02:07]} 14. Qxh5 {[%emt 0:00:54]} Be7 {[%emt 0:05:07]} 15. Bd1 {[%emt 0:03:34]} Nd8 {[%emt 0:09:49]} 16. Qf3 {[%emt 0:06:50]} Qh6 {[%emt 0:05:40]} 17. Qh5 {[%emt 0:01:47]} Qg7 {[%emt 0:04:42]} 18. Bg4 {[%emt 0:01:38]} Rh8 {[%emt 0:01:42]} 19. Bxd7+ {[%emt 0:00:32]} Kxd7 {[%emt 0:00:05]} 20. Qg4+ {[%emt 0:00:42]} Ne6 {[%emt 0:00:45]} 21. g3 {[%emt 0:01:54]} Rag8 {[%emt 0:03:06]} 22. a4 {[%emt 0:03:48]} b4 {[%emt 0:01:04]} 23. cxb4 {[%emt 0:00:15]} cxb4 {[%emt 0:00:44]} 24. Be3 {[%emt 0:01:24]} Qh6 {[%emt 0:06:19]} 25. Kg2 {[%emt 0:06:53]} Ke8 {[%emt 0:01:22]} 26. Rh1 {[%emt 0:01:01]} f5 {[%emt 0:03:47]} 27. exf5 {[%emt 0:01:20]} Nf4+ {[%emt 0:00:04]} 28. Kf1 {[%emt 0:00:18]} d5 {[%emt 0:00:57]} 29. d4 {[%emt 0:05:33]} a5 {[%emt 0:01:47]} 30. dxe5 {[%emt 0:01:16]} Qa6+ {[%emt 0:00:21]} 31. Kg1 {[%emt 1:30:16]} d4 {[%emt 1:32:37]} 32. Bxf4 {[%emt 0:01:42]} gxf4 {[%emt 0:00:10]} 33. Qxf4 {[%emt 0:00:15]} Rh4 {[%emt 0:00:59]} 34. Qf3 {[%emt 0:00:20]} Bc5 {[%emt 0:00:30]} 35. Qd5 {[%emt 0:01:10]} Rxg3+ {[%emt 0:00:29]} 36. fxg3 {[%emt 0:00:07]} Qe2 {[%emt 0:00:32]} 37. gxh4 {[%emt 0:02:07]} Qe1+ {[%emt 0:00:30]} 38. Kg2 {[%emt 0:00:12]} Qe2+ {[%emt 0:00:23]} 39. Kg3 {[%emt 0:00:06]} Qe3+ {[%emt 0:00:17]} 40. Qf3 {[%emt 0:00:13]} Qxe5+ {[%emt 0:00:07]} 41. Kg2 {[%emt 0:00:17]} 1-0

[Event "GER-chT Youth Countries 2020"]
[Site "Berlin"]
[Date "2020.10.01"]
[Round "3"]
[White "Bakiev, Diyor"]
[Black "Pikalow, Michael"]
[Result "1-0"]
[ECO "B22"]
[WhiteElo "2070"]
[BlackElo "2021"]
[Annotator "ChessBase"]
[PlyCount "67"]
[EventDate "2020.09.30"]
[EventType "team-tourn"]
[EventRounds "7"]
[EventCountry "GER"]
[SourceTitle "playchess.com"]
[Source "ChessBase"]
[SourceQuality "1"]
[TimeControl "30/5400+30:0"]

1. e4 c5 2. c3 {[%emt 0:00:00]} Nf6 {[%emt 0:00:00]} 3. e5 {[%emt 0:00:00]} Nd5 {[%emt 0:00:00]} 4. d4 {[%emt 0:00:00]} cxd4 {[%emt 0:00:00]} 5. Nf3 {[%emt 0:00:05]} Nc6 {[%emt 0:00:06]} 6. cxd4 {[%emt 0:00:06]} d6 {[%emt 0:00:05]} 7. Bc4 {[%emt 0:00:06]} dxe5 {[%emt 0:00:07]} 8. dxe5 {[%emt 0:00:05]} Ndb4 {[%emt 0:00:05]} 9. O-O {[%emt 0:00:10]} Qxd1 {[%emt 0:14:44]} 10. Rxd1 {[%emt 0:00:09]} Bg4 {[%emt 0:03:58]} 11. Nc3 {[%emt 0:25:13]} Rd8 12. Bg5 {[%emt 0:04:51]} h6 {[%emt 0:31:51]} 13. Nb5 {[%emt 0:18:29]} Na6 14. Rxd8+ Nxd8 {[%emt 0:18:08]} 15. Be3 {[%emt 0:02:38]} g6 {[%emt 0:09:09]} 16. h3 {[%emt 0:03:46]} Be6 {[%emt 0:03:26]} 17. Bxe6 {[%emt 0:00:58]} Nxe6 {[%emt 0:00:07]} 18. Rc1 {[%emt 0:02:01]} Nb4 {[%emt 0:02:41]} 19. Nxa7 {[%emt 0:07:35]} Kd7 {[%emt 0:05:08]} 20. Rd1+ Kc7 {[%emt 0:03:27]} 21. a3 {[%emt 0:02:09]} Nc6 {[%emt 0:03:44]} 22. Rc1 {[%emt 0:01:48]} Bg7 23. b4 {[%emt 0:02:38]} Kd7 {[%emt 0:00:55]} 24. Nxc6 {[%emt 0:00:54]} bxc6 {[%emt 0:00:02]} 25. a4 {[%emt 0:00:50]} Ra8 {[%emt 0:01:42]} 26. a5 {[%emt 0:00:27]} Nc7 27. Nd4 {[%emt 0:03:45]} Ra6 {[%emt 0:01:54]} 28. Nb3 {[%emt 0:03:00]} Ne6 {[%emt 0:00:36]} 29. Nc5+ {[%emt 0:01:36]} Nxc5 {[%emt 0:00:05]} 30. Rxc5 {[%emt 0:00:04]} Ke6 31. f4 {[%emt 1:31:11]} Kf5 {[%emt 1:32:17]} 32. Kf2 {[%emt 0:01:03]} e6 {[%emt 0:00:45]} 33. g4+ {[%emt 0:01:43]} Ke4 {[%emt 0:00:08]} 34. Ke2 {[%emt 0:00:32]} 1-0

[Event "GER-chT Youth Countries 2020"]
[Site "Berlin"]
[Date "2020.10.01"]
[Round "3"]
[White "Muedder, Melanie"]
[Black "Farokhi, Keyvan"]
[Result "0-1"]
[ECO "B10"]
[WhiteElo "2039"]
[BlackElo "2001"]
[Annotator "ChessBase"]
[PlyCount "112"]
[EventDate "2020.09.30"]
[EventType "team-tourn"]
[EventRounds "7"]
[EventCountry "GER"]
[SourceTitle "playchess.com"]
[Source "ChessBase"]
[SourceQuality "1"]
[TimeControl "30/5400+30:0"]

1. e4 {[%emt 0:00:00]} c6 {[%emt 0:00:00]} 2. Nf3 {[%emt 0:00:00]} d5 {[%emt 0:00:00]} 3. exd5 {[%emt 0:00:00]} cxd5 {[%emt 0:00:00]} 4. Ne5 {[%emt 0:00:00]} Nc6 {[%emt 0:00:00]} 5. d4 {[%emt 0:00:00]} Nf6 {[%emt 0:02:08]} 6. c3 {[%emt 0:00:14]} Bf5 {[%emt 0:04:53]} 7. Bb5 {[%emt 0:04:41]} Qb6 {[%emt 0:00:39]} 8. Qa4 {[%emt 0:06:53]} Rc8 {[%emt 0:00:42]} 9. Qb3 {[%emt 0:07:32]} e6 {[%emt 0:03:26]} 10. Nd2 {[%emt 0:01:01]} Be7 {[%emt 0:02:40]} 11. O-O {[%emt 0:05:54]} O-O {[%emt 0:01:00]} 12. f4 {[%emt 0:02:36]} Bc2 {[%emt 0:01:57]} 13. Qxc2 {[%emt 0:01:45]} Nxd4 {[%emt 0:00:12]} 14. Qd3 {[%emt 0:01:50]} Nxb5+ {[%emt 0:01:23]} 15. Kh1 {[%emt 0:00:09]} Nd6 {[%emt 0:00:21]} 16. Nb3 {[%emt 0:04:27]} Nfe4 {[%emt 0:07:07]} 17. Be3 {[%emt 0:03:08]} Qc7 {[%emt 0:00:44]} 18. Nd4 {[%emt 0:08:01]} Nc4 {[%emt 0:03:40]} 19. Nxc4 {[%emt 0:13:31]} Qxc4 {[%emt 0:00:13]} 20. Qxc4 {[%emt 0:03:14]} dxc4 {[%emt 0:07:40]} 21. f5 {[%emt 0:09:59]} exf5 {[%emt 0:05:52]} 22. Nxf5 {[%emt 0:06:36]} Bc5 {[%emt 0:00:47]} 23. Rae1 {[%emt 0:03:56]} Rfe8 {[%emt 0:02:49]} 24. Bxc5 {[%emt 0:04:39]} Rxc5 {[%emt 0:00:21]} 25. Kg1 {[%emt 0:00:59]} g6 {[%emt 0:02:29]} 26. Ng3 {[%emt 0:05:02]} Rce5 {[%emt 0:00:20]} 27. Nxe4 {[%emt 0:00:49]} Rxe4 {[%emt 0:00:02]} 28. Rd1 {[%emt 0:00:35]} Re2 {[%emt 0:10:02]} 29. Rd7 {[%emt 0:02:05]} Rxb2 {[%emt 0:00:31]} 30. Rfxf7 {[%emt 0:02:38]} Re1+ {[%emt 0:00:11]} 31. Rf1 {[%emt 1:30:17]} Ree2 {[%emt 1:31:24]} 32. Rff7 {[%emt 0:01:23]} Rxg2+ {[%emt 0:02:34]} 33. Kf1 {[%emt 0:00:06]} Rxh2 {[%emt 0:00:14]} 34. Kg1 {[%emt 0:00:13]} Rbg2+ {[%emt 0:00:16]} 35. Kf1 {[%emt 0:00:19]} Rxa2 {[%emt 0:00:06]} 36. Kg1 {[%emt 0:00:57]} Rag2+ {[%emt 0:00:10]} 37. Kf1 {[%emt 0:00:08]} Rd2 {[%emt 0:00:10]} 38. Rg7+ {[%emt 0:01:41]} Kh8 {[%emt 0:00:07]} 39. Rxd2 {[%emt 0:00:18]} Rxd2 {[%emt 0:00:37]} 40. Rxb7 {[%emt 0:00:06]} a5 {[%emt 0:03:12]} 41. Ra7 {[%emt 0:00:37]} Rd5 {[%emt 0:00:39]} 42. Ke2 {[%emt 0:00:45]} h5 {[%emt 0:00:29]} 43. Rc7 {[%emt 0:00:41]} a4 {[%emt 0:00:45]} 44. Rxc4 {[%emt 0:01:22]} Ra5 {[%emt 0:00:14]} 45. Rd4 {[%emt 0:00:51]} a3 {[%emt 0:00:08]} 46. Rd1 {[%emt 0:00:07]} a2 {[%emt 0:00:05]} 47. Ra1 {[%emt 0:00:13]} Kg7 {[%emt 0:00:10]} 48. Kd3 {[%emt 0:00:22]} h4 {[%emt 0:00:24]} 49. Ke4 {[%emt 0:00:32]} Kf6 {[%emt 0:00:27]} 50. c4 {[%emt 0:00:00]} Ke6 {[%emt 0:00:00]} 51. Kf4 {[%emt 0:00:00]} Kd6 {[%emt 0:00:00]} 52. Kg4 {[%emt 0:00:00]} Kc5 {[%emt 0:00:00]} 53. Kxh4 {[%emt 0:00:00]} Kxc4 {[%emt 0:00:00]} 54. Kg3 {[%emt 0:00:00]} Kb3 {[%emt 0:00:00]} 55. Kf3 {[%emt 0:00:00]} Kb2 {[%emt 0:00:00]} 56. Rg1 {[%emt 0:00:00]} a1=Q {[%emt 0:00:00]} 0-1

[Event "GER-chT Youth Countries 2020"]
[Site "Berlin"]
[Date "2020.10.01"]
[Round "3"]
[White "Wu, Luka"]
[Black "Stelmaszyk, Nico"]
[Result "1/2-1/2"]
[ECO "B33"]
[WhiteElo "2019"]
[BlackElo "2301"]
[Annotator "ChessBase"]
[PlyCount "79"]
[EventDate "2020.09.30"]
[EventType "team-tourn"]
[EventRounds "7"]
[EventCountry "GER"]
[SourceTitle "playchess.com"]
[Source "ChessBase"]
[SourceQuality "1"]
[TimeControl "30/5400+30:0"]

1. e4 c5 2. Nf3 Nc6 3. d4 cxd4 4. Nxd4 Nf6 5. Nc3 e5 6. Ndb5 d6 7. Bg5 {[%emt 0:00:12]} a6 {[%emt 0:00:09]} 8. Na3 {[%emt 0:00:49]} b5 {[%emt 0:00:07]} 9. Bxf6 {[%emt 0:01:39]} gxf6 {[%emt 0:00:06]} 10. Nd5 {[%emt 0:00:05]} Bg7 {[%emt 0:00:18]} 11. c3 {[%emt 0:10:30]} f5 {[%emt 0:00:21]} 12. Bd3 {[%emt 0:00:22]} Be6 {[%emt 0:00:42]} 13. Nxb5 {[%emt 0:02:20]} axb5 {[%emt 0:00:07]} 14. Bxb5 {[%emt 0:00:04]} Bd7 {[%emt 0:02:10]} 15. exf5 {[%emt 0:00:10]} O-O {[%emt 0:00:30]} 16. Qg4 {[%emt 0:00:30]} Kh8 {[%emt 0:00:30]} 17. Qe4 {[%emt 0:00:30]} Qb8 {[%emt 0:16:19]} 18. c4 {[%emt 0:17:46]} Bxf5 {[%emt 0:06:31]} 19. Qxf5 {[%emt 0:07:20]} Nd4 {[%emt 0:00:30]} 20. Qb1 {[%emt 0:09:05]} Nxb5 {[%emt 0:01:39]} 21. cxb5 {[%emt 0:00:30]} Qxb5 {[%emt 0:00:30]} 22. Nc3 {[%emt 0:00:30]} Qc4 {[%emt 0:00:30]} 23. Qe4 {[%emt 0:00:30]} Qxe4+ {[%emt 0:00:30]} 24. Nxe4 {[%emt 0:00:30]} d5 {[%emt 0:00:30]} 25. Ng3 {[%emt 0:00:30]} Rfb8 {[%emt 0:04:42]} 26. O-O {[%emt 0:18:48]} Rxb2 {[%emt 0:00:07]} 27. a4 {[%emt 0:00:54]} Ra5 {[%emt 0:10:38]} 28. Rfc1 {[%emt 0:01:15]} h6 {[%emt 0:01:21]} 29. Nh5 {[%emt 0:04:12]} Rb4 {[%emt 0:00:54]} 30. f3 {[%emt 0:00:30]} Kh7 {[%emt 0:00:30]} 31. g4 {[%emt 1:30:30]} Bh8 {[%emt 1:59:57]} 32. Rc7 {[%emt 0:13:04]} e4 {[%emt 0:14:31]} 33. Rac1 {[%emt 0:02:41]} exf3 {[%emt 0:01:28]} 34. Rxf7+ {[%emt 0:00:24]} Kg6 {[%emt 0:00:06]} 35. Rxf3 {[%emt 0:00:14]} Be5 {[%emt 0:03:24]} 36. Ng3 {[%emt 0:00:55]} Kg7 37. Rc6 {[%emt 0:00:56]} Rxg4 38. Rb3 {[%emt 0:00:30]} Ra7 {[%emt 0:03:41]} 39. a5 {[%emt 0:00:49]} Bxg3 {[%emt 0:00:30]} 40. hxg3 {[%emt 0:00:30]} 1/2-1/2

[Event "GER-chT Youth Countries 2020"]
[Site "Berlin"]
[Date "2020.10.01"]
[Round "3"]
[White "Bardorz, Jana"]
[Black "Koenig, Emmilie"]
[Result "1-0"]
[ECO "B13"]
[WhiteElo "1960"]
[BlackElo "1518"]
[Annotator "ChessBase"]
[PlyCount "81"]
[EventDate "2020.09.30"]
[EventType "team-tourn"]
[EventRounds "7"]
[EventCountry "GER"]
[SourceTitle "playchess.com"]
[Source "ChessBase"]
[SourceQuality "1"]
[TimeControl "30/5400+30:0"]

1. e4 {[%emt 0:00:00]} c6 {[%emt 0:00:00]} 2. d4 {[%emt 0:00:00]} d5 {[%emt 0:00:00]} 3. exd5 {[%emt 0:00:00]} cxd5 {[%emt 0:00:00]} 4. Bd3 {[%emt 0:00:00]} Nc6 {[%emt 0:00:00]} 5. c3 {[%emt 0:00:02]} Qc7 {[%emt 0:00:00]} 6. Ne2 {[%emt 0:00:21]} Bg4 {[%emt 0:00:03]} 7. O-O {[%emt 0:00:17]} Nf6 {[%emt 0:00:28]} 8. Qe1 {[%emt 0:07:52]} e6 {[%emt 0:02:55]} 9. f3 {[%emt 0:02:41]} Bh5 {[%emt 0:04:47]} 10. Qh4 {[%emt 0:02:32]} Bd6 {[%emt 0:06:26]} 11. Bg5 {[%emt 0:04:48]} Bxh2+ {[%emt 0:07:01]} 12. Qxh2 {[%emt 0:02:36]} Qxh2+ {[%emt 0:00:16]} 13. Kxh2 {[%emt 0:00:06]} Bg6 {[%emt 0:05:20]} 14. Bxg6 {[%emt 0:02:44]} hxg6+ {[%emt 0:00:02]} 15. Kg1 {[%emt 0:00:18]} Nh7 {[%emt 0:04:32]} 16. Be3 {[%emt 0:01:02]} f5 {[%emt 0:04:30]} 17. Kf2 {[%emt 0:04:41]} Kf7 {[%emt 0:01:43]} 18. Nd2 {[%emt 0:03:05]} Rae8 {[%emt 0:11:00]} 19. f4 {[%emt 0:02:46]} Nf6 {[%emt 0:01:15]} 20. Ng3 {[%emt 0:02:27]} Ng4+ {[%emt 0:05:32]} 21. Ke2 {[%emt 0:00:16]} Kf6 {[%emt 0:11:04]} 22. Rh1 {[%emt 0:02:07]} Rh6 {[%emt 0:01:56]} 23. Nf3 {[%emt 0:01:51]} Reh8 {[%emt 0:02:28]} 24. Bd2 {[%emt 0:03:23]} Nd8 {[%emt 0:08:54]} 25. Ne5 {[%emt 0:01:38]} Rxh1 {[%emt 0:01:14]} 26. Rxh1 {[%emt 0:00:34]} Rxh1 {[%emt 0:00:21]} 27. Nxg4+ {[%emt 0:00:36]} fxg4 {[%emt 0:00:11]} 28. Nxh1 {[%emt 0:00:06]} Nf7 {[%emt 0:00:51]} 29. g3 {[%emt 0:01:16]} Nd6 {[%emt 0:02:11]} 30. Nf2 {[%emt 0:00:44]} Kf5 {[%emt 0:00:33]} 31. Kd3 {[%emt 1:31:10]} b5 {[%emt 1:31:34]} 32. b3 {[%emt 0:00:37]} a6 {[%emt 0:01:34]} 33. Nd1 {[%emt 0:00:28]} Ne4 {[%emt 0:02:13]} 34. Ne3+ {[%emt 0:00:09]} Kf6 {[%emt 0:00:39]} 35. Nxg4+ {[%emt 0:00:05]} Kf5 {[%emt 0:00:57]} 36. Ne3+ {[%emt 0:00:06]} Kf6 {[%emt 0:00:10]} 37. Be1 {[%emt 0:00:23]} g5 {[%emt 0:02:45]} 38. c4 {[%emt 0:00:36]} dxc4+ {[%emt 0:00:45]} 39. Kxe4 {[%emt 0:00:14]} cxb3 {[%emt 0:00:04]} 40. axb3 {[%emt 0:00:12]} gxf4 {[%emt 0:00:14]} 41. Kxf4 {[%emt 0:00:31]} 1-0